Cogmind - Beta 11.1 @@@ ROGUE MODE // 2022.05.27 @ 00:55:27 Player: OBK Result: Self-destructed Performance ------------- Evolutions (1) 500 Regions Visited (2) 400 Robots Destroyed (18) 90 Value Destroyed (463) 463 Prototype IDs (0) 0 Alien Tech Used (0) 0 Bonus (10) 10 TOTAL SCORE: 1463 Bonus ------- High Alert Combat Kills 10 Cogmind --------- Core Integrity 261/400 Matter 114/300 Energy 125/125 System Corruption 0% Temperature Cool (0) Movement Hovering (116) Ox1 Location -9/Materials Parts ------- > --- POWER (1) -------- Light Ion Engine > --- PROPULSION (3) --- Improved Hover Unit Improved Hover Unit > --- UTILITY (2) ------ Hardened Light Armor Plating Hardened Light Armor Plating > --- WEAPON (3) ------- Light Assault Rifle Shotgun Grenade Launcher > --- INVENTORY (5) ---- Large Storage Unit Light Armor Plating Peak State ------------ > --- POWER ------------ Light Ion Engine > --- PROPULSION ------- Improved Hover Unit Improved Hover Unit Improved Hover Unit > --- UTILITY ---------- Hardened Light Armor Plating Hardened Light Armor Plating > --- WEAPON ----------- Light Assault Rifle Shotgun Grenade Launcher > --- INVENTORY -------- Large Storage Unit Light Armor Plating [Rating: 15] Favorites ----------- Power Light Ion Engine Engine Light Ion Engine Propulsion Aluminum Leg Treads Light Treads Leg Aluminum Leg Wheel Compact Wheel Hover Unit Improved Hover Unit Utility Small Storage Unit Storage Small Storage Unit Protection Hardened Light Armor Plating Weapon Light Assault Rifle Energy Gun Medium Laser Ballistic Gun Light Assault Rifle Launcher Grenade Launcher Build | -11 -10 -9 ------- Run | Scr Mat Mat Slots Evolved 2 | . . 2 Power . | . . . Propulsion 1 | . . 1 Utility . | . . . Weapon 1 | . . 1 Parts Attached 26 | . 8 18 Power 2 | . . 2 Engine 2 | . . 2 Core . | . . . Reactor . | . . . Propulsion 14 | . 6 8 Treads 3 | . 1 2 Leg 6 | . 3 3 Wheel 2 | . 2 . Hover 3 | . . 3 Flight . | . . . Utility 3 | . 1 2 Device . | . . . Storage 1 | . 1 . Processor . | . . . Hackware . | . . . Protection 2 | . . 2 Artifact . | . . . Weapon 7 | . 1 6 Energy Gun 1 | . . 1 Energy Cannon . | . . . Ballistic Gun 4 | . 1 3 Ballistic Cannon . | . . . Launcher 2 | . . 2 Special Weapon . | . . . Impact Weapon . | . . . Slashing Weapon . | . . . Piercing Weapon . | . . . Special Melee Weapon . | . . . Unidentified Prototypes . | . . . Parts Lost 4 | . 1 3 Power . | . . . Propulsion 3 | . 1 2 Utility . | . . . Weapon 1 | . . 1 Highest Loss Streak 1 | . 1 1 To Critical Strikes . | . . . Average Slot Usage (%) 95 | . 97 93 Engine 11 | . 14 10 Treads 2 | . . 4 Leg 17 | . 10 23 Wheel 7 | . 15 . Hover 1 | . . 2 Storage 20 | . 27 15 Protection 3 | . . 6 Energy Gun 6 | . 6 7 Ballistic Gun 19 | . 21 17 Launcher 2 | . . 4 Naked Turns 4 | . . 4 Heaviest Build 34 | 11 31 34 Greatest Support 40 | 20 26 40 Greatest Overweight (x) 1 | . 1 1 Average Overweight (x) . | . . . Largest Inventory Capacity 15 | . 15 15 Average Capacity 13 | . 14 11 Most Carried 15 | . 15 12 Average Carried 9 | . 11 7 Final Capacity 15 | 8 15 5 Final Carried 13 | 6 13 2 Class Distribution -------------------- 56% | Mutant 21% | Gunner 13% | Tank 9% | Scavenger-Gunner Dominant Class ---------------- Mutant | -10/Materials Gunner | -9/Materials Resources | -11 -10 -9 ----------- Run | Scr Mat Mat Matter Collected 367 | 200 136 31 Remotely . | . . . Salvage Created 443 | . 250 193 Parts 34 | . 18 16 Haulers Intercepted . | . . . Recyclers Shooed 3 | . . 3 Parts Field Recycled . | . . . Retrieved Matter . | . . . Parts Self-Destructed . | . . . Prevented . | . . . Kills | -11 -10 -9 ------- Run | Scr Mat Mat Combat Hostiles Destroyed 17 | . 6 11 Guns 12 | . 6 6 AOE 5 | . . 5 Classes Destroyed 4 | . 1 3 Watcher 1 | . . 1 Swarmer 7 | . . 7 Grunt 9 | . 6 3 Sentry 1 | . . 1 Best Kill Streak 7 | . 2 7 Combat Bots Only 6 | . 2 6 Max Kills in Single Turn 3 | . 1 3 Gunslinging . | . . . Exploded 3 | . . 3 Melee . | . . . Uniques/NPCs Destroyed . | . . . Combat | -11 -10 -9 -------- Run | Scr Mat Mat Damage Taken 957 | . 451 506 Core 233 | . 94 139 Absorbed by Shields . | . . . Core Remaining (%) 81 | 100 62 . Volleys Fired 62 | . 29 33 Largest 3 | . 2 3 Hottest 100 | . 70 100 Shots Fired 140 | . 58 82 Gun 136 | . 58 78 Cannon . | . . . Launcher 4 | . . 4 Special . | . . . Kinetic 103 | . 57 46 Thermal 33 | . 1 32 Explosive 4 | . . 4 Electromagnetic . | . . . Robot Hit Streak 8 | . 8 8 Robot Miss Streak 3 | . 2 3 Penetration Max . | . . . Secondary Targets 3 | . 2 1 Max Gunslinging Chain 1 | . 1 1 Shots Hit Robots 80 | . 39 41 Core Hits 36 | . 17 19 Critical Kills 1 | . . 1 Critical Parts Destroyed 1 | . . 1 Critical Strikes 3 | . 1 2 Burn 1 | . 1 . Destroy 2 | . . 2 Melee Attacks . | . . . Impact . | . . . Slashing . | . . . Piercing . | . . . Sneak Attacks . | . . . Combat Hostiles . | . . . Follow-up Attacks . | . . . Damage Inflicted 1119 | . 342 777 Guns 750 | . 327 423 Cannons . | . . . Explosions 319 | . . 319 Melee . | . . . Ramming 50 | . 15 35 Kinetic 527 | . 315 212 Thermal 223 | . 12 211 Explosive 319 | . . 319 Electromagnetic . | . . . Impact . | . . . Slashing . | . . . Piercing . | . . . Highest Corruption . | . . . Average Corruption . | . . . Corruption Purged . | . . . Corruption Blocked . | . . . Overload Shots . | . . . Overflow Damage 10 | . . 10 Projectiles . | . . . Explosions 10 | . . 10 Melee . | . . . Knockbacks . | . . . Impact . | . . . Kinetic . | . . . Secondary . | . . . Self-Inflicted Damage 8 | . . 8 Shots . | . . . Rammed 9 | . . 9 Targets Rammed 12 | . 2 10 Kicked 3 | . 2 1 Crushed . | . . . Highest Temperature 324 | . 32 324 Average Temperature 73 | . 13 98 Received Heat Transfer 366 | . 258 108 Effects 3 | . . 3 Interference 3 | . . 3 Siege Activations . | . . . Robots Corrupted . | . . . Combat Hostiles . | . . . Parts Fried . | . . . Impact Corruptions . | . . . Robots Melted . | . . . Combat Hostiles . | . . . Parts Melted 1 | . . 1 Heat Transferred 740 | . 111 629 Parts Sabotaged . | . . . Parts Stolen . | . . . Parts Stripped . | . . . Power Chain Reactions . | . . . Missiles Intercepted . | . . . Alert | -11 -10 -9 ------- Run | Scr Mat Mat Peak Influence 437 | . 216 437 Initial 31 | . . 31 Average 142 | . 55 218 Maximum Alert Level 2 | . 1 2 Low Security (%) 58 | . 99 23 Level 1 38 | . . 71 Level 2 2 | . . 5 Level 3 . | . . . Level 4 . | . . . Level 5 . | . . . High Security . | . . . Max Security . | . . . Squads Dispatched 3 | . 1 2 Investigation 1 | . 1 . Extermination . | . . . Reinforcement 2 | . . 2 Assault . | . . . Garrison . | . . . Intercept . | . . . Searches Triggered . | . . . Construction Impeded . | . . . Haulers Reinforced . | . . . Active Scanning Responses . | . . . Cargo Convoy Interrupts . | . . . Stealth | -11 -10 -9 --------- Run | Scr Mat Mat Distress Signals . | . . . Communications Jammed . | . . . Distress Signals . | . . . Times Spotted 39 | . 15 24 Peak Tracking Total 8 | . 4 8 Tactical Retreats 4 | . 2 2 Traps | -11 -10 -9 ------- Run | Scr Mat Mat Traps Triggered 1 | . 1 . Indirectly . | . . . Trap Hack Attempts . | . . . Triggered . | . . . Disarmed . | . . . Reprogrammed . | . . . Reused . | . . . Traps Extracted . | . . . Installed . | . . . Triggered . | . . . Machines | -11 -10 -9 ---------- Run | Scr Mat Mat Machines Disabled . | . . . Max in Single Turn . | . . . Machines Sabotaged . | . . . Garrisons Compromised . | . . . Overloaded Fab Kills . | . . . Hacking | -11 -10 -9 --------- Run | Scr Mat Mat Machines Accessed 6 | . 5 1 Terminals 6 | . 5 1 Fabricators . | . . . Repair Stations . | . . . Recycling Units . | . . . Scanalyzers . | . . . Garrison Access . | . . . Total Hacks 16 | . 15 1 Successful 7 | . 7 . Failed 9 | . 8 1 Catastrophic 1 | . . 1 Database Lockouts . | . . . Manual 17 | . 16 1 Terminals 16 | . 15 1 Fabricators . | . . . Repair Stations . | . . . Recycling Units . | . . . Scanalyzers . | . . . Garrison Access . | . . . Terminal Hacks 3 | . 3 . Level Access Points 1 | . 1 . Terminal Index 1 | . 1 . Hauler Manifests 1 | . 1 . Fabricator Hacks . | . . . Repair Station Hacks . | . . . Recycling Unit Hacks . | . . . Scanalyzer . | . . . Garrison Access Hacks . | . . . Unauthorized Hacks 4 | . 4 . Terminals 4 | . 4 . Botnet 4 | . 4 . Fabricators . | . . . Repair Stations . | . . . Recycling Units . | . . . Scanalyzers . | . . . Garrison Access . | . . . Data Cores Recovered . | . . . Used . | . . . Hacking Detections 6 | . 5 1 Full Trace Events . | . . . Feedback Events . | . . . Feedback Blocked . | . . . Robot Schematics Acquired . | . . . Robots Built . | . . . Authchips . | . . . Time . | . . . Total Robot Build Rating . | . . . Part Schematics Acquired . | . . . Parts Built . | . . . Authchips . | . . . Time . | . . . Total Part Build Rating . | . . . Parts Repaired . | . . . Time . | . . . Parts Recycled . | . . . Recycled Matter . | . . . Retrieved Matter . | . . . Retrieved Components . | . . . Parts Scanalyzed . | . . . Part Schematics Acquired . | . . . Parts Damaged . | . . . Bothacking | -11 -10 -9 ------------ Run | Scr Mat Mat Used RIF Installer . | . . . Robots Hacked . | . . . Non-combat . | . . . Combat . | . . . Robot Hacks Applied . | . . . Relay Couplers Released . | . . . Fabnet Peak Effective % . | . . . Robots Rewired . | . . . Allies Hacked . | . . . Hacks Repelled . | . . . Allies | -11 -10 -9 -------- Run | Scr Mat Mat Total Allies . | . . . Largest Group . | . . . Highest-Rated Group . | . . . Highest-Rated Ally . | . . . Total Orders . | . . . Ally Attacks . | . . . Total Damage . | . . . Kills . | . . . Allies Corrupted . | . . . Allies Melted . | . . . Intel | -11 -10 -9 ------- Run | Scr Mat Mat Robot Analysis Total . | . . . Derelict Logs Recovered . | . . . Drone Launches . | . . . Drone Recoveries . | . . . Exploration | -11 -10 -9 ------------- Run | Scr Mat Mat Turns Passed 1253 | . 582 671 Spaces Moved 628 | 1 369 258 Core 8 | . . 8 Treads 70 | . . 70 Legs 178 | 1 78 99 Wheels 291 | . 291 . Hover 81 | . . 81 Flight . | . . . Fastest Speed 50 | 120 95 50 Average Speed 129 | 120 124 137 Slowest Speed 190 | 120 190 190 Overloaded Moves . | . . . Propulsion Burnouts . | . . . Robots Hopped . | . . . Cave-ins Triggered . | . . . Exploration Rate (%) 21 | 2 42 19 Regions Visited 2 Branch Regions . Pre-discovered Areas . | . . . Known Exits Taken 1 | . 1 . Unknown Exits Taken 1 | 1 . . Scrap Searched . | . . . Spaces Dug . | . . . Terrain Destroyed 18 | . . 18 Melee . | . . . Projectile . | . . . AOE 18 | . . 18 Terrain Rammed . | . . . Walls Destroyed . | . . . Machines Disabled . | . . . Actions | -11 -10 -9 --------- Run | Scr Mat Mat Total 951 | . 446 505 Wait 195 | . 23 172 Move 626 | . 368 258 Hop . | . . . Pick Up 17 | . 12 5 Fast Attach 11 | . . 11 Attach 7 | . 2 5 Detach . | . . . Swap 8 | . 6 2 Drop 13 | . 4 9 Fire 62 | . 29 33 Melee . | . . . Ram 1 | . . 1 Kick 3 | . 2 1 Crush 8 | . . 8 Escape Stasis . | . . . Rewire . | . . . Trap . | . . . Miscellaneous . | . . . Route ------- -11/Scrapyard -10/Materials (discovered 3 exits: *Mat x3) -9/Materials History --------- Turn | Location | Event 1 | -11/Scrapyard | Discovered new exit (range 0) 1 | -11/Scrapyard | Entered Materials 145 | -10/Materials | Discovered new exit (range 13) 310 | -10/Materials | Build established: Mutant 505 | -10/Materials | Identified exit to Materials 583 | -10/Materials | Entered another Materials area 583 | -9/Materials | Evolved 2 slots: Propulsion x1, Weapon x1 1040 | -9/Materials | Released all parts (9) 1254 | -9/Materials | Self-destructed Last Messages --------------- 01148_ R-06 Scavenger inserts Aluminum Leg into recycling unit. 01151_ K-01 Serf cleans the Fusion Modulator. 01151_ R-06 Scavenger inserts Sml. Storage Unit into recycling unit. 01152_ Recycling unit begins recycling process. 01154_ R-06 Scavenger inserts Lgt. Ion Engine into recycling unit. 01174_ K-01 Serf collects debris. 01178_ Acquired Imp. Hover Unit. 01178_ K-01 Serf collects debris. 01181_ Acquired Imp. Hover Unit. 01182_ K-01 Serf collects debris. 01183_ K-01 Serf cleans the Nuclear Reactor. 01195_ Dropped Aluminum Leg. 01196_ Dropped Lgt. Treads. 01197_ K-01 Serf cleans the Nuclear Reactor. 01205_ Acquired Imp. Hover Unit. 01208_ K-01 Serf cleans the Nuclear Reactor. 01219_ Acquired 10 matter. 01241_ Imp. Hover Unit destroyed. 01246_ Slammed into U-05 Engineer. 01249_ K-01 Serf cleans the Terminal. Map ----- +----------------------------------------------------+ | | | | | | | | | | | | | ?????????????????????????????????????????????????? | | ?????????????????????????????????????????????????? | | ??????????????????????????????????###????????????? | | ?????????????????????????????????? #??????????? | | ???????????????????????????#####?""" #??????????? | | ???????????????????????????# #?""" #??????????? | | ???????????????????????????# # """ #??????????? | | ???????????????????????????# # #??????????? | | ???????????? ########+##### + #??????????? | | ??????????? ########??????????? | | ??????????? ############??????? | | ??????????? ## #??????? | | ????????????????#+########## ## #??????? | | ???????????????????????????# ## #??????? | | ???????????????????????????# ## #??????? | | ???????????????????????????# ## #??????? | | ?# "?????????????????????# ## #??????? | | ?# # ????????????????# ## % #??????? | | ?? / ############### ## #??????? | | ?????????# Y @ k #####+############ | | ?????????################## "k | | ??????????????????????????# "T % | | ??????????????????????????# | | ??????????????????????????# ####k% ########### | | ??????????????????????????#######??# #?????????# | | ???????????????????????????????????# #?????????# | | ???????????????????????????????????# #?????????# | | ???????????????????????????????????# ########### | | ??????????????????????????????????##% # / | | ??????????????????????????????????## # """ # | | ?????????????????????????????????? # # """ # | | ?????????????????????????????????### # """ # | | ??????????????????????????????????## # # | | ??????????????????????????????????## + # | | ??????????????????????????????????## # ! =# | | ???????????????????????????????????# # ==# | | ???????????????????????????????????# ########### | | ??????????????????????????????????# ?????????? | | ????????????????????????????????? ?????????? | | ???????????????????????????????? ?????????? | | ??????????????????????????????? ?????????? | | ?????????????????????????????? #### #????????? | | ????????????????????????????? ????###+###????????? | | ???????????????????????????? ????????????????????? | +----------------------------------------------------+ Best States ------------- Heat Dissipation 28 Energy Generation 10 Energy Capacity 125 Matter Stores 300 Matter Capacity 300 Sight Range 16 Terrain Scan Density 10 Armor Coverage 300 Evasion (%) 54 Recoil Reduction 2 Item Schematics ----------------- None Robot Schematics ------------------ None Fabricated ------------ Nothing Alien Tech Used ----------------- None Achievements -------------- None Challenges ------------ None Game ------ Seed IonRegenerativeMatter Manual? 0 Play Time 00:22:32 Cumulative 19.9 hours Start 2022.05.27 @ 00:32:21 End 2022.05.27 @ 00:55:27 Sessions 1 Manual Loads 0 Difficulty Rogue Special Mode None Game No. 15 Rogue 13 Adventurer 2 Explorer 0 Win Type - Total 0 Types 0/0/0/0/0/0/0/0/0 Lore% 7 Gallery% 18 Achievement% 16 Wizard Run 0 Options --------- ASCII 0 Keyboard 0 Movement Numpad Keybinds 0 Fullscreen 1 Font 18/SmallcapsGlow Map View 76x50 Tactical HUD 1 Map Filters NONE Filters NONE Steam 1 RUN: 4b16a4ba-5e42-4794-804a-c4b2d43857d8